bitfinex-derivatives/quotes_SOLF0:USTF0_20240816
["timestamp","ask_amount","ask_price","bid_price","bid_amount"]
[1723794659413,10.67138751,144.6,144.59,5.94069989]
[1723794661055,10.67138751,144.6,144.58,3.50565614]
[1723794661317,10.67138751,144.6,144.59,2.48257987]
[1723794662726,10.67138751,144.6,144.58,3.50565614]
[1723794662915,10.67138751,144.6,144.59,2.48248257]
[1723794663222,10.67138751,144.6,144.58,0.04795614]
[1723794663626,10.67138751,144.6,144.58,3.50575614]
[1723794664013,0.05138751,144.6,144.58,0.04795614]
[1723794664215,0.05138751,144.6,144.59,2.48134605]
[1723794665347,0.05138751,144.6,144.59,8.5848697]
[1723794665522,0.05138751,144.6,144.59,2.48013013]
[1723794665722,0.05138751,144.6,144.59,5.93763013]
[1723794666420,0.05138751,144.6,144.59,14.51870458]
[1723794670924,10.67138751,144.6,144.59,7.02280458]
[1723794671123,10.67138751,144.6,144.58,0.04795614]
[1723794671322,10.62,144.59,144.58,0.04795614]
[1723794671518,3.50868751,144.6,144.58,0.04795614]
[1723794671725,10.62,144.59,144.58,0.04795614]
[1723794675831,14.0775,144.59,144.58,0.04795614]
[1723794681531,3.50878751,144.6,144.58,0.04795614]
[1723794682434,0.05138751,144.6,144.58,0.04795614]
[1723794683128,0.05138751,144.6,144.58,3.50555614]
[1723794684528,0.05138751,144.6,144.59,3.4575]
[1723794684726,0.05138751,144.6,144.59,12.05028689]
[1723794685531,3.456,144.66,144.59,21.68867574]
[1723794685733,3.456,144.66,144.6,11.06600893]
[1723794685934,3.456,144.66,144.61,11.06600893]
[1723794686134,3.456,144.66,144.62,5.93258885]
[1723794686436,3.4559,144.66,144.63,2.47588885]
[1723794686736,0.04632658,144.65,144.63,0.05077188]
[1723794687139,3.50242658,144.65,144.63,0.05077188]
[1723794687432,3.50242658,144.65,144.64,2.47514874]
[1723794688638,3.50242658,144.65,144.63,0.05077188]
[1723794688639,3.4563,144.64,144.63,0.05077188]
[1723794688936,14.0763,144.64,144.63,0.05077188]
[1723794692736,3.4563,144.64,144.63,0.05077188]
[1723794692938,14.0763,144.64,144.63,0.05077188]
[1723794698466,18.3763,144.64,144.63,0.05077188]
[1723794699636,18.3763,144.64,144.63,2.53148355]
[1723794700431,14.0763,144.64,144.63,2.53148355]
[1723794702139,0.04632658,144.65,144.63,2.53148355]
[1723794702444,0.04632658,144.65,144.64,11.08398139]
[1723794702853,0.04632658,144.65,144.63,0.05077188]
[1723794703144,0.04632658,144.65,144.64,11.07878579]
[1723794703344,0.04632658,144.65,144.64,11.07809569]
[1723794703757,0.04632658,144.65,144.64,8.6001819]
[1723794704052,0.04632658,144.65,144.64,11.07857964]
[1723794704244,0.04632658,144.65,144.64,11.0776281]
[1723794704841,0.04632658,144.65,144.64,14.5339281]
[1723794705643,0.04632658,144.65,144.64,5.93377245]
[1723794705844,0.04632658,144.65,144.64,14.53332936]
[1723794711449,0.04632658,144.65,144.64,14.53265821]
[1723794713449,0.04632658,144.65,144.64,11.07635821]
[1723794714544,14.12242658,144.65,144.64,11.07635821]
[1723794715773,14.12242658,144.65,144.63,0.05077188]
[1723794715959,14.12242658,144.65,144.64,2.48003872]
[1723794716453,14.12242658,144.65,144.64,2.48030179]
[1723794717449,3.4563,144.64,144.63,0.05077188]
[1723794718553,14.0763,144.64,144.63,0.05077188]
[1723794720152,10.62,144.64,144.63,0.05077188]
[1723794720346,0.04632658,144.65,144.63,8.66038321]
[1723794720659,0.04632658,144.65,144.64,8.60738708]
[1723794726861,3.50242658,144.65,144.64,8.60738708]
[1723794727562,14.12242658,144.65,144.64,8.60738708]
[1723794728057,14.12242658,144.65,144.63,0.05077188]
[1723794728263,14.12242658,144.65,144.64,8.60068564]
[1723794729457,14.12242658,144.65,144.64,11.07137831]
[1723794729664,14.12242658,144.65,144.64,2.47069267]
[1723794731557,3.4563,144.64,144.63,0.05077188]
[1723794731759,7.7563,144.64,144.63,0.05077188]
[1723794734361,18.3763,144.64,144.63,8.6468289]
[1723794734564,18.3763,144.64,144.63,0.05077188]
[1723794734962,18.3763,144.64,144.63,8.646913]
[1723794737457,18.3763,144.64,144.63,0.05077188]
[1723794737658,18.3763,144.64,144.63,8.65014581]
[1723794737963,18.3763,144.64,144.63,0.05077188]
[1723794739261,18.3763,144.64,144.63,8.65020759]
[1723794740464,18.3763,144.64,144.63,8.65029578]
[1723794740660,4.3,144.64,144.63,8.65029578]
[1723794740860,0.04632658,144.65,144.63,8.65029578]
[1723794741166,0.04632658,144.65,144.64,8.5995239]
[1723794741862,0.04632658,144.65,144.64,8.59635981]
[1723794742761,0.04632658,144.65,144.64,12.05265981]
[1723794743565,0.04632658,144.65,144.64,14.51354222]
[1723794745982,0.04632658,144.65,144.64,12.05265981]
[1723794746167,0.04632658,144.65,144.64,14.50231435]
[1723794748069,0.04632658,144.65,144.64,27.55733405]
[1723794750276,0.04632658,144.65,144.64,3.4563]
[1723794750478,0.04632658,144.65,144.64,25.11321401]
[1723794750671,0.04632658,144.65,144.64,27.57444966]
[1723794750971,0.04632658,144.65,144.64,24.11814966]
[1723794751168,0.04632658,144.65,144.64,11.05429004]
[1723794751169,10.66632658,144.65,144.64,11.05429004]
[1723794751374,0.04632658,144.65,144.64,11.05429004]
[1723794751576,10.66632658,144.65,144.64,11.05429004]
[1723794751768,14.96632658,144.65,144.64,11.05429004]
[1723794752074,18.42242658,144.65,144.64,11.05429004]
[1723794752675,18.42242658,144.65,144.63,0.05077188]
[1723794752676,3.4563,144.64,144.63,0.05077188]
[1723794752867,3.4563,144.64,144.63,11.11857406]
[1723794753674,3.4563,144.64,144.63,2.51568018]
[1723794753976,3.4563,144.64,144.63,11.12001316]
[1723794754886,3.4563,144.64,144.63,2.51568018]
[1723794755179,3.4563,144.64,144.63,11.118254]
[1723794755484,4.34632658,144.65,144.63,4.73626902]
[1723794755777,4.34632658,144.65,144.56,13.08384206]
[1723794756076,4.34632658,144.65,144.57,2.46636428]
[1723794756077,42.48,144.6,144.57,2.46636428]
[1723794756376,3.458,144.57,144.55,0.05318044]
[1723794756580,10.62,144.56,144.55,0.05318044]
[1723794756782,10.62,144.56,144.55,2.51493813]
[1723794757179,14.0782,144.56,144.55,2.51493813]
[1723794757986,30.0482,144.56,144.55,2.51493813]
[1723794758186,3.4591,144.53,144.49,1.2617]
[1723794758382,34.3491,144.53,144.5,2.45567179]
[1723794758582,34.3491,144.53,144.49,1.2617]
[1723794758583,34.3491,144.53,144.51,2.45567179]
[1723794758888,34.3491,144.53,144.52,2.45567179]
[1723794759184,34.3491,144.53,144.49,4.7214]
[1723794759585,34.3491,144.53,144.51,0.05030524]
[1723794760383,3.4592,144.52,144.51,0.05030524]
[1723794760882,3.4592,144.52,144.45,4.7265]
[1723794760883,26.59,144.52,144.45,4.7265]
[1723794761089,26.59,144.5,144.45,4.7265]
[1723794761278,4.3,144.49,144.45,4.7265]
[1723794761587,7.76,144.49,144.45,4.7265]
[1723794762082,0.05281469,144.48,144.45,4.7265]
[1723794762281,0.05281469,144.48,144.46,0.05118852]
[1723794763085,0.05281469,144.48,144.46,3.51178852]
[1723794763385,0.05281469,144.48,144.46,0.05118852]
[1723794763586,0.05281469,144.48,144.47,3.4604]
[1723794763802,4.3,144.52,144.46,26.59]
[1723794764288,7.7593,144.52,144.48,3.46]
[1723794764776,0.05039613,144.51,144.49,0.05272292]
[1723794765181,0.05039613,144.51,144.49,3.51262292]
[1723794767292,0.05039613,144.51,144.5,3.4597]
[1723794773892,0.05039613,144.51,144.5,5.90747214]
[1723794774394,0.05039613,144.51,144.5,3.4597]
[1723794774594,0.05039613,144.51,144.5,5.90741327]
[1723794774794,0.05039613,144.51,144.5,3.4597]
[1723794774994,0.05039613,144.51,144.5,5.90742581]
[1723794776191,0.05039613,144.51,144.5,3.4597]
[1723794777996,0.05039613,144.51,144.5,5.90709113]
[1723794778195,0.05039613,144.51,144.5,7.24489113]
[1723794779206,4.3,144.55,144.53,3.4589]
[1723794779598,26.59,144.58,144.54,3.4587]
[1723794779798,4.3,144.57,144.54,3.4587]
[1723794779998,14.93,144.57,144.51,11.9171]
[1723794780193,0.05181302,144.55,144.53,3.50840301]
[1723794782402,0.05181302,144.55,144.53,0.04960301]
[1723794783500,0.05181302,144.55,144.53,3.50850301]
[1723794783799,0.05181302,144.55,144.53,0.04960301]
[1723794784005,0.05181302,144.55,144.53,3.50850301]
[1723794785597,0.05181302,144.55,144.54,3.4587]
[1723794794808,0.05181302,144.55,144.53,3.50840301]
[1723794795107,10.63,144.54,144.53,0.04960301]
[1723794795707,14.93,144.54,144.53,0.04960301]
[1723794796208,18.3887,144.54,144.53,0.04960301]
[1723794796410,14.93,144.54,144.53,0.04960301]
[1723794803216,18.3887,144.54,144.53,0.04960301]
[1723794804318,7.7587,144.54,144.53,0.04960301]
[1723794804519,18.3887,144.54,144.53,0.04960301]
[1723794809013,3.4593,144.52,144.46,2.4924]
[1723794809213,10.63,144.51,144.48,3.46]
[1723794809410,10.63,144.51,144.49,2.44625992]
[1723794809616,10.63,144.51,144.48,3.46]
[1723794809814,10.63,144.51,144.49,2.44611943]
[1723794810024,10.63,144.51,144.48,3.46]
[1723794810217,10.67398607,144.51,144.49,2.49509168]
[1723794810419,10.67398607,144.51,144.49,0.04880995]
[1723794811124,10.67398607,144.51,144.49,3.50870995]
[1723794812423,10.63,144.5,144.49,0.04880995]
[1723794812623,10.63,144.5,144.49,2.49456787]
[1723794813024,10.63,144.5,144.49,0.04880995]
[1723794814619,10.63,144.5,144.49,2.49500271]
[1723794816923,10.67398607,144.51,144.49,5.95490271]
[1723794817224,0.04398607,144.51,144.5,2.44590967]
[1723794818319,0.04398607,144.51,144.5,5.90560967]
[1723794818735,0.04398607,144.51,144.5,3.4597]
[1723794818921,0.04398607,144.51,144.5,5.90502399]
[1723794819630,14.93,144.55,144.5,2.44439581]
[1723794819817,4.3,144.55,144.51,11.03759947]
[1723794820022,4.3,144.55,144.52,2.44439581]
[1723794820219,4.3,144.55,144.53,5.90319581]
[1723794820417,4.3,144.55,144.54,2.44439581]
[1723794823230,4.3,144.55,144.54,2.44222191]
[1723794824329,4.3,144.55,144.54,11.02937137]
[1723794827329,4.3,144.55,144.54,2.44147084]
[1723794827533,4.3,144.55,144.54,11.02650282]
[1723794828936,4.3,144.55,144.54,14.48520282]
[1723794829743,4.3,144.55,144.54,3.4587]
[1723794830034,4.3,144.55,144.54,11.03346965]
[1723794830938,7.7585,144.55,144.54,11.03346965]
[1723794831539,4.3,144.55,144.54,11.03346965]
[1723794832730,4.3,144.55,144.54,14.49216965]
[1723794833127,4.3,144.55,144.54,14.49292154]
[1723794833326,10.67942068,144.56,144.54,14.49292154]
[1723794833534,10.67942068,144.56,144.55,11.03422154]
[1723794834736,0.04942068,144.56,144.55,14.49272154]
[1723794835439,0.04942068,144.56,144.55,14.49118348]
[1723794835640,14.13762068,144.56,144.55,11.03268348]
[1723794835837,3.50762068,144.56,144.55,2.44222744]
[1723794836034,3.4585,144.55,144.53,0.04740601]
[1723794836231,10.63,144.54,144.53,0.04740601]
[1723794836438,10.63,144.54,144.53,11.08541991]
[1723794836632,10.63,144.54,144.53,2.49151865]
[1723794837143,10.63,144.54,144.53,11.08698885]
[1723794837439,10.63,144.54,144.53,2.49151865]
[1723794837636,10.63,144.54,144.53,11.08762363]
[1723794838239,10.63,144.54,144.53,8.64351099]
[1723794838441,10.63,144.54,144.53,2.4854378]
[1723794839437,10.63,144.54,144.53,0.04740601]
[1723794839639,10.63,144.54,144.53,11.08075223]
[1723794839840,10.63,144.54,144.53,2.48509447]
[1723794840041,14.0887,144.54,144.53,2.48509447]
[1723794840442,18.3887,144.54,144.53,2.48509447]
[1723794844745,4.34942068,144.56,144.53,11.0793252]
[1723794844943,0.04942068,144.56,144.54,3.4585]
[1723794845251,0.04942068,144.56,144.55,11.02890891]
[1723794846136,0.04942068,144.56,144.55,2.43649384]
[1723794847251,10.67942068,144.56,144.55,2.43649384]
[1723794848748,10.67942068,144.56,144.53,0.04740601]
[1723794849048,3.459,144.53,144.49,3.4598]
[1723794849256,10.63,144.51,144.5,8.59654298]
[1723794850058,4.3,144.55,144.5,8.59654298]
[1723794850254,0.04405961,144.52,144.51,8.59654298]
[1723794850458,0.04405961,144.52,144.49,0.0494126]
[1723794850659,0.04405961,144.52,144.51,3.4594]
[1723794850862,0.04405961,144.52,144.51,12.0520687]
[1723794851462,4.3,144.56,144.53,3.4587]
[1723794851764,10.63,144.57,144.53,3.4587]
[1723794851957,10.63,144.57,144.5,16.72110998]
[1723794852254,10.63,144.57,144.54,3.4586]
[1723794852462,10.63,144.57,144.55,8.58776439]
[1723794852764,10.67683006,144.57,144.54,0.0517286]
[1723794852960,10.67683006,144.57,144.55,12.04587428]
[1723794853161,10.67683006,144.57,144.56,8.58757428]
[1723794854978,10.67683006,144.57,144.55,3.4583]
[1723794855162,10.67683006,144.57,144.56,8.58707861]
[1723794855661,0.04683006,144.57,144.56,12.04527861]
[1723794858856,0.04683006,144.57,144.56,12.0442828]
[1723794859661,4.3,144.62,144.59,3.4575]
[1723794859961,14.93,144.62,144.55,13.2478]
[1723794860162,14.93,144.62,144.56,21.62980957]
[1723794860362,10.63,144.62,144.57,8.5809961]
[1723794860566,4.3,144.65,144.58,1.2236]
[1723794860863,18.3863,144.65,144.59,11.00543184]
[1723794861056,0.04853191,144.63,144.6,2.46937816]
[1723794861253,0.04853191,144.63,144.61,11.00543184]
[1723794861450,0.04853191,144.63,144.62,5.88252131]
[1723794863001,10.67853191,144.63,144.62,3.4568]
[1723794863165,10.67853191,144.63,144.62,5.88169038]
[1723794864579,10.67853191,144.63,144.62,3.4568]
[1723794864764,10.67853191,144.63,144.62,2.42471486]
[1723794867294,10.67853191,144.63,144.61,3.457]
[1723794867476,10.67853191,144.63,144.62,2.42472495]
[1723794867703,10.67853191,144.63,144.61,3.457]
[1723794867971,10.67853191,144.63,144.62,2.42425605]
[1723794868571,10.67853191,144.63,144.62,2.4231905]
[1723794868771,10.67853191,144.63,144.61,3.457]
[1723794869071,10.67853191,144.63,144.62,2.42293861]
[1723794869273,10.67853191,144.63,144.61,3.457]
[1723794869573,14.0854,144.68,144.62,10.98807941]
[1723794869765,14.0854,144.68,144.63,2.42184519]
[1723794869965,14.0854,144.68,144.64,5.87804519]
[1723794870166,14.0854,144.68,144.65,2.42184519]
[1723794870461,14.0854,144.68,144.65,0.04711842]
[1723794870661,10.63,144.68,144.65,0.04711842]
[1723794870861,14.93,144.69,144.65,0.04711842]
[1723794871074,14.93,144.69,144.66,2.42023604]
[1723794871372,14.93,144.69,144.67,3.4555]
[1723794873372,14.93,144.69,144.66,3.4557]
[1723794874277,10.63,144.67,144.66,3.4557]
[1723794874877,10.63,144.67,144.65,3.50311842]
[1723794876071,10.63,144.66,144.65,0.04711842]
[1723794876772,14.0858,144.66,144.65,0.04711842]
[1723794878079,17.47861421,144.66,144.65,0.04711842]
[1723794878579,14.0858,144.66,144.65,0.04711842]
[1723794878780,6.85103443,144.66,144.65,0.04711842]
[1723794878980,17.48103443,144.66,144.6,2.42130815]
[1723794879177,10.63,144.62,144.61,2.42130815]
[1723794879772,10.63,144.62,144.59,1.3237]
[1723794879773,7.69558018,144.65,144.59,1.3237]
[1723794879973,10.63,144.61,144.6,2.42200016]
[1723794880781,3.50264726,144.63,144.6,2.42221659]
[1723794881007,10.63,144.61,144.59,4.83160087]
[1723794881176,10.63,144.61,144.6,2.42220693]
[1723794881377,3.50264726,144.63,144.6,2.42220693]
[1723794881577,10.63,144.61,144.59,4.83160087]
[1723794881782,10.63,144.61,144.6,2.42196674]
[1723794883788,10.63,144.61,144.59,4.83160087]
[1723794886578,14.0871,144.61,144.59,1.37420087]
[1723794887410,14.0871,144.61,144.59,0.05050087]
[1723794889088,3.4571,144.61,144.59,0.05050087]
[1723794889295,14.0871,144.61,144.59,0.05050087]
[1723794893190,3.4573,144.6,144.59,0.05050087]
[1723794893386,10.63,144.6,144.59,0.05050087]
[1723794894685,4.28,144.61,144.59,0.05050087]
[1723794894884,10.63,144.6,144.59,0.05050087]
[1723794895192,14.0873,144.6,144.59,0.05050087]
[1723794895991,3.4573,144.6,144.59,0.05050087]
[1723794896190,14.0873,144.6,144.59,0.05050087]
[1723794900387,3.4573,144.6,144.59,0.05050087]
[1723794900594,7.7371,144.61,144.59,0.05050087]
[1723794900791,18.3671,144.61,144.59,0.05050087]
[1723794905985,3.4573,144.6,144.59,0.05050087]
[1723794906889,14.0873,144.6,144.59,0.05050087]
[1723794908801,3.4573,144.6,144.59,0.05050087]
[1723794908992,14.0873,144.6,144.59,0.05050087]
[1723794910500,10.63,144.6,144.59,0.05050087]
[1723794911092,7.7372,144.61,144.59,2.47903741]
[1723794911292,10.63,144.6,144.59,0.05050087]
[1723794911595,10.63,144.6,144.59,2.47872471]
[1723794912595,3.4569,144.62,144.59,2.47872471]
[1723794912793,18.3669,144.62,144.59,0.05050087]
[1723794913396,10.63,144.61,144.6,2.42824116]
[1723794913691,10.63,144.61,144.59,0.05050087]
[1723794915103,10.63,144.61,144.59,3.50800087]
[1723794915306,10.63,144.61,144.6,2.42886697]
[1723794918222,10.63,144.61,144.59,3.50790087]
[1723794918413,10.63,144.61,144.6,2.42861993]
[1723794922312,10.63,144.61,144.6,2.42904621]
[1723794922646,10.63,144.61,144.59,3.50790087]
[1723794922809,10.63,144.61,144.6,2.42904718]
[1723794924518,7.7369,144.62,144.6,2.42904718]
[1723794924730,10.63,144.61,144.59,3.50790087]
[1723794924914,10.63,144.61,144.6,2.42938533]
[1723794926721,10.63,144.61,144.6,11.02289842]
[1723794926920,10.63,144.61,144.6,2.42923618]
[1723794930227,10.63,144.61,144.6,8.59564487]
[1723794930528,4.28,144.62,144.6,11.02548779]
[1723794930719,14.91,144.62,144.61,2.42984292]
[1723794931440,14.91,144.62,144.61,2.42997407]
[1723794932131,18.3668,144.62,144.59,3.50790087]
[1723794932424,18.3668,144.62,144.6,2.42999395]
[1723794932627,18.3668,144.62,144.61,2.42999395]
[1723794936523,18.3668,144.62,144.61,2.4318891]
[1723794939628,18.3668,144.62,144.61,2.43336769]
[1723794941131,14.91,144.62,144.61,2.43336769]
[1723794941329,14.91,144.62,144.61,11.04118685]
[1723794942930,18.3668,144.62,144.61,11.04118685]
[1723794943642,18.3668,144.62,144.59,0.05050087]
[1723794943643,3.4571,144.61,144.59,0.05050087]
[1723794943825,10.63,144.6,144.59,0.05050087]
[1723794944039,10.63,144.6,144.59,2.48405847]
[1723794944232,10.63,144.6,144.59,24.18389287]
[1723794944630,7.737,144.62,144.59,27.64139287]
[1723794944834,7.737,144.62,144.6,11.04225623]
[1723794945033,7.737,144.62,144.61,11.04225623]
[1723794945233,18.367,144.62,144.61,11.04225623]
[1723794945734,4.28,144.62,144.61,11.04225623]
[1723794945933,14.91,144.62,144.61,11.04225623]
[1723794946832,4.28,144.62,144.61,11.04225623]
[1723794947134,0.04594726,144.63,144.61,24.1316479]
[1723794947334,10.67594726,144.63,144.62,11.04225623]
[1723794947730,10.67594726,144.63,144.62,11.04097583]
[1723794947930,0.04594726,144.63,144.62,11.04097583]
[1723794948139,10.67594726,144.63,144.62,11.04097583]
[1723794948343,14.13254726,144.63,144.62,11.04097583]
[1723794949249,0.04594726,144.63,144.62,11.04097583]
[1723794949735,0.04594726,144.63,144.62,27.58491781]
[1723794950038,0.04594726,144.63,144.62,14.49777583]
[1723794950833,0.04594726,144.63,144.62,27.58557598]
[1723794951232,0.04594726,144.63,144.62,14.49777583]
[1723794951439,0.04594726,144.63,144.62,27.58443529]
[1723794952840,3.4557,144.67,144.64,3.4563]
[1723794952841,14.0857,144.67,144.64,3.4563]
[1723794953043,14.0857,144.67,144.65,11.04097583]
[1723794953344,14.0857,144.67,144.66,2.4335576]
[1723794953760,10.63,144.67,144.64,3.4563]
[1723794953938,10.63,144.67,144.65,2.47647938]
[1723794954132,10.63,144.67,144.66,11.03662473]
[1723794955352,10.63,144.67,144.66,11.03600948]
[1723794956243,4.28,144.68,144.66,11.03600948]
[1723794956451,10.63,144.67,144.65,3.5003315]
[1723794956646,10.63,144.67,144.66,11.034473]
[1723794957649,10.63,144.67,144.66,11.03480889]
[1723794957949,10.63,144.67,144.65,3.5003315]
[1723794958246,10.63,144.67,144.66,11.03469271]
[1723794961151,4.28,144.68,144.66,7.56659271]
[1723794961344,4.28,144.68,144.67,6.5432245]
[1723794961651,10.63,144.69,144.67,6.5432245]
[1723794961852,10.63,144.69,144.68,2.43253179]
[1723794963146,10.63,144.69,144.68,2.42538887]
[1723794965243,10.63,144.7,144.68,5.88078887]
[1723794965449,10.63,144.7,144.69,2.42538887]
[1723794966977,10.63,144.7,144.68,3.4554]
[1723794967143,10.63,144.7,144.69,2.425473]
[1723794967645,10.63,144.7,144.69,2.42570425]
[1723794969448,14.0849,144.7,144.69,2.42570425]
[1723794970051,14.0849,144.7,144.69,2.24160425]
[1723794971256,14.0849,144.7,144.67,0.05264095]
[1723794971444,10.63,144.69,144.67,0.05264095]
[1723794974848,10.63,144.69,144.67,3.50814095]
[1723794975954,3.4549,144.7,144.67,3.50814095]
[1723794976152,10.63,144.68,144.67,3.50814095]
[1723794978858,10.63,144.68,144.67,0.05264095]
[1723794981745,3.4552,144.69,144.67,0.05264095]
[1723794981947,10.63,144.68,144.67,0.05264095]
[1723794982155,10.63,144.68,144.67,2.47828962]
[1723794983851,10.63,144.68,144.67,5.93388962]
[1723794984146,3.455,144.7,144.67,5.93388962]
[1723794984147,10.63,144.69,144.67,5.93388962]
[1723794984346,10.63,144.69,144.68,2.42564867]
[1723794984760,3.455,144.7,144.68,2.42564867]
[1723794984954,3.455,144.7,144.67,3.50824095]
[1723794985153,10.63,144.69,144.68,2.42560409]
[1723794988152,4.28,144.71,144.59,13.08403707]
[1723794988354,10.63,144.63,144.6,11.0260445]
[1723794988558,10.63,144.62,144.61,14.4830445]
[1723794988763,10.63,144.62,144.61,12.05787641]
[1723794990762,10.63,144.62,144.61,8.60087641]
[1723794990967,10.63,144.62,144.6,0.04443129]
[1723794991170,10.63,144.62,144.61,8.60661616]
[1723794993875,10.63,144.62,144.61,12.06361616]
[1723794995973,10.63,144.62,144.61,8.60661616]
[1723794998069,14.0868,144.62,144.61,8.60661616]
[1723794998279,0.04675007,144.63,144.6,0.04443129]
[1723794998475,10.63,144.61,144.6,0.04443129]
[1723794998672,10.63,144.61,144.6,8.65658844]
[1723794998871,10.63,144.61,144.6,0.04443129]
[1723794999068,10.63,144.61,144.6,8.6573326]
[1723794999270,10.63,144.61,144.6,0.04443129]
[1723794999676,14.087,144.61,144.6,0.04443129]
[1723794999979,14.087,144.61,144.6,8.65701469]
[1723795000281,14.087,144.61,144.6,8.65712862]
[1723795001875,7.7369,144.62,144.6,8.65712862]
[1723795002079,18.3669,144.62,144.6,0.04443129]
[1723795002580,4.28,144.62,144.6,0.04443129]
[1723795002777,0.04675007,144.63,144.61,8.61416046]
[1723795003081,0.04675007,144.63,144.62,8.61416046]
[1723795003779,0.04675007,144.63,144.6,3.50153129]
[1723795003985,0.04675007,144.63,144.61,8.61615575]
[1723795004176,0.04675007,144.63,144.6,3.50153129]
[1723795004379,0.04675007,144.63,144.61,8.61758813]
[1723795004677,0.04675007,144.63,144.6,3.50153129]
[1723795004979,0.04675007,144.63,144.61,8.61756784]
[1723795005183,0.04675007,144.63,144.61,3.457]
[1723795005481,14.13335007,144.63,144.6,0.04443129]
[1723795005677,10.67675007,144.63,144.61,8.61775737]
[1723795005983,10.67675007,144.63,144.62,2.42326894]
[1723795006382,10.67675007,144.63,144.62,11.04074711]
[1723795006576,14.13335007,144.63,144.62,11.04074711]
[1723795006883,14.13335007,144.63,144.62,2.42326894]
[1723795008285,14.13335007,144.63,144.62,2.42441097]
[1723795013977,14.31745007,144.63,144.62,2.42441097]
[1723795015685,3.457,144.62,144.6,0.04443129]
[1723795015887,10.63,144.61,144.6,0.04443129]
[1723795016087,10.63,144.61,144.6,11.08942361]
[1723795016391,10.63,144.61,144.6,2.46869003]
[1723795016584,10.63,144.61,144.6,11.08686867]
[1723795016794,10.63,144.61,144.6,8.66260993]
[1723795017088,10.63,144.61,144.6,11.08622058]
[1723795017897,3.68755007,144.63,144.6,11.08622058]
[1723795018091,0.23085007,144.63,144.61,11.03893267]
[1723795018392,0.23085007,144.63,144.62,11.03893267]
[1723795019191,0.23085007,144.63,144.62,2.42284292]
[1723795020993,3.68745007,144.63,144.62,2.42284292]
[1723795022689,0.23085007,144.63,144.62,2.42284292]
[1723795025595,3.68745007,144.63,144.62,2.42284292]
[1723795026397,0.23085007,144.63,144.62,2.42284292]
[1723795026597,0.23085007,144.63,144.62,11.02478785]
[1723795026901,0.23085007,144.63,144.62,2.42284292]
[1723795028001,0.23085007,144.63,144.62,2.41761195]
[1723795028301,0.23085007,144.63,144.61,3.4569]
[1723795028491,0.23085007,144.63,144.62,2.41739878]
[1723795029504,4.28,144.66,144.62,2.41739878]
[1723795029694,4.28,144.66,144.63,11.00858024]
[1723795029899,10.63,144.66,144.64,2.41739878]
[1723795030095,4.28,144.69,144.65,2.41739878]
[1723795030301,10.63,144.66,144.59,3.37565617]
[1723795030497,14.0859,144.66,144.62,3.4567]
[1723795030708,0.02425605,144.64,144.63,11.00625726]
[1723795031203,10.65425605,144.64,144.63,2.41552209]
[1723795031607,10.65425605,144.64,144.63,11.00237682]
[1723795032505,10.65425605,144.64,144.61,3.50860253]
[1723795032702,10.65425605,144.64,144.63,8.58618016]
[1723795033006,10.65425605,144.64,144.63,11.00037366]
[1723795034999,14.11055605,144.64,144.63,11.00037366]
[1723795035208,14.11055605,144.64,144.63,2.4141935]
[1723795036106,3.4568,144.62,144.61,0.05170253]
[1723795036309,14.0868,144.62,144.61,8.6534623]
[1723795036512,14.0868,144.62,144.61,0.05170253]
[1723795043315,14.0868,144.62,144.61,8.65143169]
[1723795044417,18.3668,144.63,144.61,8.65143169]
[1723795044713,14.0868,144.63,144.61,0.05170253]
[1723795045905,3.4568,144.62,144.61,0.05170253]
[1723795046109,10.63,144.63,144.61,8.65229459]
[1723795046310,10.63,144.63,144.61,0.05170253]
[1723795046512,14.0867,144.63,144.61,0.05170253]
[1723795046916,7.74075605,144.64,144.61,0.05170253]
[1723795047215,18.37075605,144.64,144.62,8.59985819]
[1723795047412,18.37075605,144.64,144.61,0.05170253]
[1723795047613,18.37075605,144.64,144.62,8.59933461]
[1723795047916,18.37075605,144.64,144.61,3.50870253]
[1723795048108,18.37075605,144.64,144.62,11.00993871]
[1723795048309,18.37075605,144.64,144.63,2.41100357]
[1723795050315,14.91425605,144.64,144.63,11.01129564]
[1723795050914,14.91425605,144.64,144.63,2.41100357]
[1723795051417,14.91425605,144.64,144.63,11.01079766]